bitfinex/quotes_BTCUSD_20251110
["timestamp","ask_amount","ask_price","bid_price","bid_amount"]
[1762815144724,0.32230182,105970.0,105960.0,0.02400001]
[1762815146969,0.34978182,105970.0,105960.0,0.02400001]
[1762815147179,0.37462182,105970.0,105960.0,0.02400001]
[1762815148671,0.37462182,105970.0,105960.0,0.02488973]
[1762815149814,0.00070267,105970.0,105960.0,0.02488973]
[1762815150287,0.32230182,105970.0,105960.0,0.02488973]
[1762815153253,0.32230182,105970.0,105960.0,0.02442949]
[1762815156873,0.00070267,105970.0,105960.0,0.34602864]
[1762815157587,0.00070267,105970.0,105960.0,0.34302864]
[1762815158108,0.00070267,105970.0,105960.0,0.34702864]
[1762815158605,0.00070267,105970.0,105960.0,0.02388973]
[1762815158721,0.00070267,105970.0,105960.0,0.34548888]
[1762815158926,0.00070267,105970.0,105960.0,0.34848888]
[1762815160393,0.00070267,105970.0,105960.0,0.34448888]
[1762815161533,0.00070267,105970.0,105960.0,0.34148888]
[1762815162405,0.00070267,105970.0,105960.0,0.66308803]
[1762815162795,0.00070267,105970.0,105960.0,0.34148888]
[1762815165921,0.00070267,105970.0,105960.0,0.45476888]
[1762815166832,0.00070267,105970.0,105960.0,0.9651185]
[1762815167028,0.00070267,105970.0,105960.0,0.77636803]
[1762815169513,0.0002,105990.0,105960.0,1.10880555]
[1762815169723,0.00034327,105990.0,105980.0,0.66308803]
[1762815169931,0.00034327,105990.0,105980.0,0.01988973]
[1762815170138,0.00081155,105990.0,105980.0,0.13316973]
[1762815170673,0.00081155,105990.0,105980.0,0.01988973]
[1762815171470,0.3224107,105990.0,105980.0,0.01988973]
[1762815171886,0.00081155,105990.0,105980.0,0.01988973]
[1762815176005,0.00081155,105990.0,105980.0,0.34148888]
[1762815176306,0.00081155,105990.0,105980.0,0.53020373]
[1762815176506,0.00081155,105990.0,105980.0,0.34148888]
[1762815178353,0.00081155,105990.0,105980.0,0.53020373]
[1762815178812,0.00081155,105990.0,105980.0,0.34148888]
[1762815179045,0.00081155,105990.0,105980.0,0.01988973]
[1762815180696,0.00081155,105990.0,105980.0,0.20860458]
[1762815180893,0.00081155,105990.0,105980.0,0.52954592]
[1762815181409,0.00081155,105990.0,105980.0,0.20860458]
[1762815181676,0.00081155,105990.0,105980.0,0.52954592]
[1762815181916,0.00081155,105990.0,105980.0,0.25860458]
[1762815182153,0.00081155,105990.0,105980.0,0.90254592]
[1762815183165,0.32094134,106020.0,105980.0,0.88265619]
[1762815183426,0.32141872,106020.0,106010.0,0.01988973]
[1762815184953,0.32141872,106020.0,106010.0,0.02188973]
[1762815185542,0.32141872,106020.0,106010.0,0.02488973]
[1762815186402,0.00047738,106020.0,106010.0,0.02488973]
[1762815187957,0.32141872,106020.0,106010.0,0.02488973]
[1762815188174,0.32141872,106020.0,106010.0,0.02188973]
[1762815188373,0.32141872,106020.0,106010.0,0.01988973]
[1762815189015,0.32212089,106020.0,106010.0,0.01988973]
[1762815190701,0.33419089,106020.0,106010.0,0.01988973]
[1762815191181,0.69376223,106020.0,106010.0,0.01988973]
[1762815191649,0.37282089,106020.0,106010.0,0.01988973]
[1762815192497,0.34981089,106020.0,106010.0,0.01988973]
[1762815192691,0.85939588,106020.0,106010.0,0.01988973]
[1762815192897,0.88240588,106020.0,106010.0,0.01988973]
[1762815193288,0.69376223,106020.0,106010.0,0.01988973]
[1762815193489,0.84377588,106020.0,106010.0,0.01988973]
[1762815193692,0.52283454,106020.0,106010.0,0.01988973]
[1762815194072,0.33419089,106020.0,106010.0,0.01988973]
[1762815194268,0.32212089,106020.0,106010.0,0.01988973]
[1762815194852,0.51076454,106020.0,106010.0,0.01988973]
[1762815195249,0.00117955,106020.0,106010.0,0.01988973]
[1762815207390,0.32212089,106020.0,106010.0,0.01988973]
[1762815208973,0.65476223,106020.0,106010.0,0.01988973]
[1762815209521,0.66986223,106020.0,106010.0,0.01988973]
[1762815210544,0.85850588,106020.0,106010.0,0.01988973]
[1762815210759,0.86850587,106020.0,106010.0,0.01988973]
[1762815211010,0.89138587,106020.0,106010.0,0.01988973]
[1762815211299,0.86850587,106020.0,106010.0,0.01988973]
[1762815211560,0.89138587,106020.0,106010.0,0.01988973]
[1762815214704,0.89138587,106020.0,106010.0,0.02288973]
[1762815214863,0.89138587,106020.0,106010.0,0.02688973]
[1762815215061,0.90138586,106020.0,106010.0,0.02688973]
[1762815215704,1.22438586,106020.0,106010.0,0.02688973]
[1762815217232,0.36097954,106020.0,106010.0,0.02688973]
[1762815217417,1.16470587,106020.0,106010.0,0.02688973]
[1762815217624,0.97606222,106020.0,106010.0,0.02688973]
[1762815218447,0.65512088,106020.0,106010.0,0.02688973]
[1762815219154,0.84376453,106020.0,106010.0,0.02688973]
[1762815219356,0.85546453,106020.0,106010.0,0.02688973]
[1762815219537,1.17640587,106020.0,106010.0,0.02688973]
[1762815220124,1.19150587,106020.0,106010.0,0.02688973]
[1762815220935,1.21438587,106020.0,106010.0,0.02688973]
[1762815221135,1.22438586,106020.0,106010.0,0.02688973]
[1762815225523,0.00999999,105990.0,105980.0,0.05]
[1762815225822,1.01168266,105990.0,105980.0,0.07]
[1762815225964,1.03456266,105990.0,105980.0,0.07]
[1762815226622,1.2232597,105990.0,105980.0,0.07]
[1762815229757,1.2242597,105990.0,105980.0,0.07]
[1762815229921,1.2252597,105990.0,105980.0,0.07]
[1762815232373,1.2242597,105990.0,105980.0,0.07]
[1762815232540,1.2232597,105990.0,105980.0,0.07]
[1762815232769,1.2232597,105990.0,105980.0,0.077]
[1762815234875,1.25944198,105990.0,105980.0,0.077]
[1762815238451,1.25944198,105990.0,105980.0,0.073]
[1762815238993,1.58134419,105990.0,105980.0,0.073]
[1762815239276,1.58134419,105990.0,105980.0,0.075]
[1762815246178,0.6175593,105990.0,105980.0,0.075]
[1762815246521,1.58134419,105990.0,105980.0,0.075]
[1762815247541,1.46350029,105990.0,105980.0,0.075]
[1762815248045,0.95180325,105990.0,105980.0,0.075]
[1762815248304,1.15050028,105990.0,105980.0,0.075]
[1762815248508,1.47350028,105990.0,105980.0,0.075]
[1762815254984,0.83097702,105990.0,105980.0,0.075]
[1762815255182,1.47350028,105990.0,105980.0,0.075]
[1762815260075,1.79476191,105990.0,105980.0,0.075]
[1762815262172,1.83094419,105990.0,105980.0,0.075]
[1762815269031,1.50968256,105990.0,105980.0,0.075]
[1762815270840,1.83094419,105990.0,105980.0,0.075]
[1762815273223,1.50968256,105990.0,105980.0,0.075]
[1762815274821,1.83094419,105990.0,105980.0,0.075]
[1762815275810,1.92904592,105990.0,105980.0,0.075]
[1762815276027,1.92904592,105990.0,105910.0,0.00999999]
[1762815276028,0.00999999,105950.0,105940.0,0.02]
[1762815276228,0.65252325,105950.0,105940.0,0.02]
[1762815276430,0.68100325,105950.0,105940.0,0.02]
[1762815277065,0.90320152,105950.0,105940.0,0.02]
[1762815277260,0.90920152,105950.0,105940.0,0.02014327]
[1762815277465,0.91420152,105950.0,105940.0,0.02014327]
[1762815277811,0.33226163,105950.0,105940.0,0.02014327]
[1762815278191,0.02099999,105950.0,105940.0,0.02014327]
[1762815278385,0.34226162,105950.0,105940.0,0.02014327]
[1762815281146,0.33226163,105950.0,105940.0,0.02014327]
[1762815281298,0.34226162,105950.0,105940.0,0.02014327]
[1762815281743,0.33226163,105950.0,105940.0,0.02014327]
[1762815282102,0.34226162,105950.0,105940.0,0.02014327]
[1762815282304,0.33226163,105950.0,105940.0,0.02014327]
[1762815282667,0.34226162,105950.0,105940.0,0.02014327]
[1762815284652,0.33226163,105950.0,105940.0,0.02014327]
[1762815284865,0.34226162,105950.0,105940.0,0.02014327]
[1762815286348,0.5310299,105950.0,105940.0,0.02014327]
[1762815287539,0.85229153,105950.0,105940.0,0.02014327]
[1762815287891,0.5310299,105950.0,105940.0,0.02014327]
[1762815289074,0.52102991,105950.0,105940.0,0.02014327]
[1762815289386,0.5310299,105950.0,105940.0,0.02014327]
[1762815289721,0.54950991,105950.0,105940.0,0.02014327]
[1762815289863,0.5595099,105950.0,105940.0,0.02014327]
[1762815290738,0.90420153,105950.0,105940.0,0.02014327]
[1762815290920,0.88077153,105950.0,105940.0,0.02014327]
[1762815291084,0.87077154,105950.0,105940.0,0.02014327]
[1762815291407,0.91420152,105950.0,105940.0,0.02014327]
[1762815292297,0.90820152,105950.0,105940.0,0.02014327]
[1762815292517,0.90820152,105950.0,105940.0,0.02514327]
[1762815292720,0.90320152,105950.0,105940.0,0.02514327]
[1762815293132,0.90320152,105950.0,105940.0,0.02914327]
[1762815293744,0.323,105960.0,105940.0,0.00914327]
[1762815293916,0.33299999,105970.0,105960.0,0.01969015]
[1762815294123,0.65426162,105970.0,105960.0,0.01969015]
[1762815295047,0.85299427,105970.0,105960.0,0.01969015]
[1762815295248,1.2011559,105970.0,105960.0,0.01969015]
[1762815295781,1.2011559,105970.0,105960.0,0.02969015]
[1762815296115,1.1858059,105970.0,105960.0,0.02969015]
[1762815296558,1.1742559,105970.0,105960.0,0.02969015]
[1762815298618,1.1858059,105970.0,105960.0,0.02969015]
[1762815299877,0.00999999,105980.0,105960.0,0.01]
[1762815300077,0.04956251,106000.0,105980.0,0.01969015]
[1762815300078,0.32126163,105990.0,105980.0,0.01969015]
[1762815300700,0.32126163,105990.0,105960.0,0.52344812]
[1762815300951,0.32126163,105990.0,105980.0,0.01969015]
[1762815301162,0.33123228,106000.0,105990.0,0.01969015]
[1762815301407,0.33170966,106000.0,105990.0,0.01969015]
[1762815301638,0.34114362,106000.0,105990.0,0.01969015]
[1762815301849,0.64470967,106000.0,105990.0,0.01969015]
[1762815302313,0.65470966,106000.0,105990.0,0.01969015]
[1762815303276,0.65470966,106000.0,105990.0,0.02069015]
[1762815304504,0.32170967,106000.0,105990.0,0.02069015]
[1762815305886,0.32170967,106000.0,105990.0,0.001]
[1762815306101,0.32170967,106000.0,105990.0,0.02069015]
[1762815307844,0.00071148,106000.0,105990.0,0.001]
[1762815308047,0.00071148,106000.0,105990.0,0.02069015]
[1762815309129,0.00271148,106000.0,105990.0,0.01969015]
[1762815309338,0.00471148,106000.0,105990.0,0.01969015]
[1762815310206,0.00471148,106000.0,105990.0,0.22725689]
[1762815310336,0.00471148,106000.0,105990.0,0.20838719]
[1762815311562,0.00471148,106000.0,105990.0,0.01969015]
[1762815311747,0.00471148,106000.0,105990.0,0.20838719]
[1762815313006,0.00471148,106000.0,105990.0,1.5898757]
[1762815313415,0.00471148,106000.0,105990.0,1.60956585]
[1762815314103,0.00071148,106000.0,105990.0,1.63989506]
[1762815314559,0.00971148,106000.0,105990.0,1.31889687]
[1762815314944,0.00471148,106000.0,105990.0,1.49134353]
[1762815315149,0.00971148,106000.0,105990.0,1.49134353]
[1762815317026,0.00971148,106000.0,105990.0,1.47165338]
[1762815317228,0.00971148,106000.0,105990.0,1.46101432]
[1762815317431,0.00971148,106000.0,105990.0,1.49134353]
[1762815318908,0.00971148,106000.0,105990.0,1.47165338]
[1762815319073,0.00971148,106000.0,105990.0,1.49134353]
[1762815323158,0.00971148,106000.0,105990.0,1.63684353]
[1762815325244,0.00971148,106000.0,105990.0,1.60651432]
[1762815326248,0.00971148,106000.0,105990.0,1.71971432]
[1762815328066,0.00971148,106000.0,105990.0,1.22626947]
[1762815328207,0.00971148,106000.0,105990.0,1.71971432]
[1762815329519,0.00971148,106000.0,105990.0,1.70002417]
[1762815329725,0.00971148,106000.0,105990.0,1.71971432]
[1762815330743,0.00971148,106000.0,105990.0,1.57421432]
[1762815331298,0.00971148,106000.0,105990.0,1.08076947]
[1762815331708,0.00971148,106000.0,105990.0,1.57421432]
[1762815336972,0.00971148,106000.0,105990.0,1.72221155]
[1762815338183,0.00418644,106000.0,105990.0,3.50991961]
[1762815338420,0.00418644,106000.0,105990.0,3.52960976]
[1762815338747,0.0002,106030.0,106020.0,0.2083338]
[1762815338978,0.00033508,106030.0,106020.0,0.55991646]
[1762815339851,0.00633508,106030.0,106020.0,0.55991646]
[1762815340269,0.01233508,106030.0,106020.0,0.55991646]
[1762815340479,0.01233508,106030.0,106020.0,0.37127281]
[1762815340684,0.0002,106040.0,106030.0,2.39004014]
[1762815340898,0.00028998,106040.0,106030.0,1.73748195]
[1762815341105,0.00028998,106040.0,106030.0,1.47672695]
[1762815341542,0.00028998,106040.0,106030.0,1.48104999]
[1762815342722,0.00428998,106040.0,106030.0,1.48104999]
[1762815346069,0.00428998,106040.0,106030.0,1.52244999]
[1762815346499,0.00522598,106040.0,106030.0,1.52244999]
[1762815353015,0.00522598,106040.0,106030.0,1.19944999]
[1762815353929,0.00522598,106040.0,106030.0,1.52244999]
[1762815357685,0.00522598,106040.0,106030.0,1.51812695]
[1762815359513,0.00522598,106040.0,106030.0,1.10992918]
[1762815359729,0.00522598,106040.0,106030.0,1.12961933]
[1762815360199,0.00522598,106040.0,106030.0,0.80889829]
[1762815360429,0.00522598,106040.0,106030.0,1.12961933]
[1762815363170,0.00522598,106040.0,106030.0,1.44993737]
[1762815365727,0.31155836,106070.0,106040.0,0.52103847]
[1762815365930,0.32060953,106070.0,106060.0,0.01969015]
[1762815368119,0.32060953,106070.0,106060.0,0.06969015]
[1762815368366,8.999e-05,106070.0,106060.0,0.39520969]
[1762815368710,8.999e-05,106070.0,106060.0,0.40120969]
[1762815369161,8.999e-05,106070.0,106060.0,0.39520969]
[1762815369590,8.999e-05,106070.0,106060.0,0.39620969]
[1762815369797,8.999e-05,106070.0,106060.0,0.07569015]
[1762815370149,8.999e-05,106070.0,106060.0,0.39620969]
[1762815370350,8.999e-05,106070.0,106060.0,0.39120969]
[1762815370785,8.999e-05,106070.0,106060.0,0.39220969]
[1762815373360,8.999e-05,106070.0,106060.0,0.43348969]
[1762815373746,0.00079166,106070.0,106060.0,0.43348969]
[1762815375828,0.00079166,106070.0,106060.0,0.11297015]
[1762815376043,0.00079166,106070.0,106060.0,0.43348969]
[1762815384605,0.00079166,106070.0,106060.0,0.11297015]
[1762815385227,0.3213112,106070.0,106060.0,0.11297015]
[1762815386045,0.00079166,106070.0,106060.0,0.11297015]
[1762815386269,0.00079166,106070.0,106060.0,0.07169015]
[1762815386922,0.3213112,106070.0,106060.0,0.07169015]
[1762815387122,0.00079166,106070.0,106060.0,0.07169015]
[1762815387529,0.3213112,106070.0,106060.0,0.07169015]
[1762815388157,0.50986592,106070.0,106060.0,0.07169015]
[1762815388787,0.85194545,106070.0,106060.0,0.07169015]
[1762815388993,0.86814545,106070.0,106060.0,0.02169015]
[1762815389208,0.87814544,106070.0,106060.0,0.02169015]
[1762815389422,0.90095544,106070.0,106060.0,0.02169015]
[1762815390464,1.22395544,106070.0,106060.0,0.02169015]
[1762815391499,1.22395544,106070.0,106060.0,0.01969015]
[1762815391737,1.22395544,106070.0,106060.0,0.02569015]
[1762815391926,1.22395544,106070.0,106060.0,0.03069015]
[1762815396468,1.54447498,106070.0,106060.0,0.03069015]
[1762815397315,1.22395544,106070.0,106060.0,0.03069015]
[1762815398544,1.17338544,106070.0,106060.0,0.03069015]
[1762815398745,1.20114544,106070.0,106060.0,0.03069015]
[1762815398944,1.22395544,106070.0,106060.0,0.03069015]
[1762815399516,1.18494544,106070.0,106060.0,0.03069015]
[1762815399817,1.22395544,106070.0,106060.0,0.03069015]
[1762815402709,1.58065726,106070.0,106060.0,0.03069015]
[1762815404128,1.58065726,106070.0,106060.0,0.01969015]
[1762815404580,1.58065726,106070.0,106060.0,0.02369015]
[1762815404792,1.58065726,106070.0,106060.0,0.02769015]
[1762815409104,2.54221588,106070.0,106060.0,0.02769015]
[1762815409543,2.57053322,106070.0,106060.0,0.02769015]
[1762815409983,1.6089746,106070.0,106060.0,0.02369015]
[1762815410176,1.6089746,106070.0,106060.0,0.02669015]
[1762815410418,1.6089746,106070.0,106060.0,0.02269015]
[1762815410815,2.57053322,106070.0,106060.0,0.01969015]
[1762815411037,2.57053322,106070.0,106060.0,0.02169015]
[1762815411244,2.57053322,106070.0,106060.0,0.02369015]
[1762815413208,2.57053322,106070.0,106060.0,0.02000001]
[1762815413623,0.18862586,106030.0,106020.0,4.313e-05]
[1762815413790,0.52914538,106030.0,106020.0,0.01904314]
[1762815414851,0.86172492,106030.0,106020.0,0.02013312]
[1762815415023,0.90230492,106030.0,106020.0,0.02013312]
[1762815415230,1.22530492,106030.0,106020.0,0.02013312]
[1762815416246,1.22530492,106030.0,106020.0,0.02513312]
[1762815416445,1.22530492,106030.0,106020.0,0.02413312]
[1762815416880,1.22530492,106030.0,106020.0,0.02813312]
[1762815418651,0.90230492,106030.0,106020.0,0.02813312]
[1762815423018,0.90311246,106030.0,106020.0,0.02813312]
[1762815430097,0.55757915,106030.0,106020.0,0.02813312]
[1762815430671,0.54160915,106030.0,106020.0,0.02813312]
[1762815431468,0.55757915,106030.0,106020.0,0.02813312]
[1762815431676,0.54160915,106030.0,106020.0,0.02813312]
[1762815431872,0.52954915,106030.0,106020.0,0.02813312]
[1762815432928,0.34092329,106030.0,106020.0,0.02813312]
[1762815433874,0.52954915,106030.0,106020.0,0.02813312]
[1762815434419,0.34092329,106030.0,106020.0,0.02813312]
[1762815434820,0.52954915,106030.0,106020.0,0.02813312]
[1762815443166,0.5095229,106030.0,106020.0,0.02813312]
[1762815454701,0.18862586,106030.0,106020.0,0.02813312]
[1762815454923,0.50954917,106030.0,106020.0,0.02813312]
[1762815468429,0.54954917,106030.0,106020.0,0.02813312]
[1762815481199,0.22862586,106030.0,106020.0,0.02813312]
[1762815481375,0.54954917,106030.0,106020.0,0.02813312]
[1762815484881,0.87033052,106030.0,106020.0,0.02813312]
[1762815504960,0.87018785,106030.0,106020.0,0.02813312]
[1762815506497,0.22848319,106030.0,106020.0,0.02813312]
[1762815506703,0.87018785,106030.0,106020.0,0.02813312]
[1762815525191,0.22848319,106030.0,106020.0,0.02813312]
[1762815525391,0.87018785,106030.0,106020.0,0.02813312]
[1762815541291,0.04,106030.0,106020.0,0.34898545]
[1762815541505,0.33051578,106050.0,106040.0,0.01900001]
[1762815541713,0.32108627,106050.0,106040.0,0.01900001]
[1762815542705,0.00023394,106050.0,106040.0,0.01900001]
[1762815542906,0.32108627,106050.0,106040.0,0.01900001]
[1762815543232,0.00023394,106050.0,106040.0,0.01900001]
[1762815543432,0.5190998,106080.0,106070.0,0.01900001]
[1762815543715,0.83995213,106080.0,106070.0,0.01900001]
[1762815543901,0.64198466,106080.0,106070.0,0.01900001]
[1762815544510,0.83052161,106080.0,106070.0,0.01900001]
[1762815544706,0.83056931,106080.0,106070.0,0.02300001]
[1762815544936,0.5093756,106080.0,106070.0,0.02300001]
[1762815545354,0.5093756,106080.0,106070.0,0.02800001]
[1762815547955,0.32083865,106080.0,106070.0,0.02800001]
[1762815548177,0.0003277,106080.0,106070.0,0.02800001]
[1762815548408,0.0002,106100.0,106090.0,0.01900001]
[1762815548669,0.51846399,106130.0,106090.0,0.59554512]
[1762815548926,0.19842992,106130.0,106120.0,0.01]
[1762815549171,0.51894087,106130.0,106120.0,0.01]
[1762815549408,0.52081084,106130.0,106120.0,0.01]
[1762815550344,0.52081084,106130.0,106120.0,0.014]
[1762815551821,0.52081084,106130.0,106120.0,0.019]
[1762815553669,0.3228578,106130.0,106120.0,0.019]
[1762815553883,0.00234685,106130.0,106120.0,0.019]
[1762815554547,0.0002,106140.0,106130.0,0.01900001]
[1762815554762,0.00024766,106140.0,106130.0,0.01900001]
[1762815554979,0.0004813,106140.0,106130.0,0.01900001]
[1762815557679,0.19812962,106170.0,106150.0,0.01900001]
[1762815557898,0.50890597,106160.0,106150.0,0.01900001]
[1762815558320,0.32051095,106160.0,106150.0,0.01900001]
[1762815558528,0.50890582,106160.0,106150.0,0.01900001]
[1762815558741,0.50890582,106160.0,106150.0,0.02300001]
[1762815559379,0.18839487,106160.0,106150.0,0.01900001]
[1762815559587,0.51864057,106170.0,106160.0,0.01900001]
[1762815561134,0.51864057,106170.0,106160.0,0.02300001]
[1762815561345,0.51864057,106170.0,106160.0,0.02800001]
[1762815561550,0.19812962,106170.0,106160.0,0.02800001]
[1762815561759,0.51864057,106170.0,106160.0,0.02800001]
[1762815562375,0.19812962,106170.0,106160.0,0.02800001]
[1762815562783,0.51864057,106170.0,106160.0,0.02800001]
[1762815564826,0.89088152,106170.0,106160.0,0.01]
[1762815565141,0.18839487,106160.0,106150.0,0.01004313]
[1762815565348,0.88114677,106160.0,106150.0,4.313e-05]
[1762815565543,0.56063582,106160.0,106150.0,4.313e-05]
[1762815565746,0.56063582,106160.0,106150.0,0.01904314]
[1762815566228,0.56063582,106160.0,106150.0,0.02304314]
[1762815567675,0.56068347,106160.0,106150.0,0.02704314]
[1762815568047,0.88119442,106160.0,106150.0,0.02704314]
[1762815568248,0.18844812,106130.0,106120.0,0.02]
[1762815568474,0.52113907,106130.0,106120.0,0.02]
[1762815569214,0.57011147,106130.0,106120.0,0.02]
[1762815569838,0.57611147,106130.0,106120.0,0.02]
[1762815570014,0.57611147,106130.0,106120.0,0.023]
[1762815570218,0.57011147,106130.0,106120.0,0.023]
[1762815570576,0.57011147,106130.0,106120.0,0.027]
[1762815572454,0.57011147,106130.0,106090.0,0.13308]
[1762815572455,0.18850141,106100.0,106090.0,0.13308]
[1762815572722,0.50901236,106100.0,106090.0,0.13308]
[1762815573763,0.52301236,106100.0,106090.0,0.13355688]
[1762815574386,0.53519236,106100.0,106090.0,0.13355688]
[1762815575580,0.57474236,106100.0,106090.0,0.13355688]
[1762815582461,0.57474236,106100.0,106090.0,0.02047688]
[1762815582462,0.89525331,106100.0,106090.0,0.02047688]
[1762815583062,0.57474236,106100.0,106090.0,0.02047688]
[1762815583241,0.56674236,106100.0,106090.0,0.02047688]
[1762815583618,0.92343559,106100.0,106090.0,0.02047688]
[1762815584373,0.91743559,106100.0,106090.0,0.02047688]
[1762815584556,0.91843559,106100.0,106090.0,0.02047688]
[1762815584756,0.91843559,106100.0,106090.0,0.02247688]
[1762815584978,0.91743559,106100.0,106090.0,0.02047688]
[1762815585203,0.18858782,106060.0,106050.0,0.02]
[1762815585399,0.50909877,106060.0,106050.0,0.02004766]
[1762815585610,0.18858782,106060.0,106050.0,0.02004766]
[1762815585830,0.50909877,106060.0,106050.0,0.02004766]
[1762815586381,0.52009877,106060.0,106050.0,0.02104766]
[1762815587008,0.19958782,106060.0,106050.0,0.02104766]
[1762815587412,0.51509877,106060.0,106050.0,0.02104766]
[1762815587816,0.20158782,106060.0,106050.0,0.02104766]
[1762815588076,0.52209877,106060.0,106050.0,0.02104766]
[1762815594486,0.20158782,106060.0,106050.0,0.02104766]
[1762815594701,0.52209877,106060.0,106050.0,0.02104766]
[1762815595598,0.013,106060.0,106050.0,0.02104766]
[1762815597484,0.19796748,106080.0,106050.0,0.36041763]
[1762815597691,0.19796748,106080.0,106070.0,0.02]
[1762815598134,0.00942684,106080.0,106070.0,0.02]
[1762815598570,0.51847474,106080.0,106070.0,0.02]
[1762815599007,0.51852471,106090.0,106080.0,0.02]
[1762815600522,0.51852471,106090.0,106080.0,0.026]
[1762815600711,0.51843743,106100.0,106090.0,0.02]
[1762815600940,0.32051095,106110.0,106090.0,0.02]
[1762815601155,0.19798978,106120.0,106110.0,0.02]
[1762815601376,0.53097073,106120.0,106110.0,0.02]
[1762815601592,0.53097073,106120.0,106090.0,0.02]
[1762815601593,0.18851581,106100.0,106090.0,0.02]
[1762815602058,0.50902676,106100.0,106090.0,0.02004766]
[1762815602271,0.18851581,106100.0,106090.0,0.02004766]
[1762815602499,0.50902676,106100.0,106090.0,0.02004766]
[1762815602887,0.50902676,106100.0,106090.0,0.02504766]
[1762815603127,0.21040478,106110.0,106090.0,0.02504766]
[1762815603328,0.19793478,106110.0,106100.0,0.02]
[1762815604124,0.00942418,106110.0,106100.0,0.02]
[1762815604336,0.19798978,106120.0,106110.0,0.02]
[1762815607189,0.19998978,106120.0,106110.0,0.02]
[1762815608046,0.002,106120.0,106110.0,0.02]
[1762815608249,0.002,106120.0,106110.0,0.04712576]
[1762815608995,0.001,106120.0,106110.0,0.04712576]
[1762815609193,0.001,106120.0,106110.0,0.07486082]
[1762815609403,0.005,106120.0,106110.0,0.07486082]
[1762815609609,0.01,106120.0,106110.0,0.09370918]
[1762815609986,0.01,106120.0,106110.0,0.10370917]
[1762815610200,0.19797439,106140.0,106130.0,0.02]
[1762815610426,0.00942151,106140.0,106130.0,0.02]
[1762815610659,0.19814938,106150.0,106140.0,0.02]
[1762815611392,0.19862623,106150.0,106140.0,0.02]
[1762815612585,0.56255024,106150.0,106140.0,0.02]
[1762815612800,0.57502024,106150.0,106140.0,0.02]
[1762815614111,0.57502024,106150.0,106140.0,0.021]
[1762815614497,0.59038024,106150.0,106140.0,0.021]
[1762815614698,0.21109623,106150.0,106140.0,0.021]
[1762815614878,0.59038024,106150.0,106140.0,0.021]
[1762815615249,0.57502024,106150.0,106140.0,0.021]
[1762815616393,0.59038024,106150.0,106140.0,0.021]
[1762815618018,0.61435024,106150.0,106140.0,0.021]
[1762815618601,0.61435024,106150.0,106140.0,0.02]
[1762815618812,0.18848364,106110.0,106100.0,0.13312]
[1762815620103,0.1889602,106110.0,106100.0,0.13312]
[1762815620304,0.1889602,106110.0,106100.0,0.16125839]
[1762815621132,0.55288421,106110.0,106100.0,0.16125839]
[1762815621308,0.55288421,106110.0,106100.0,0.13312]
[1762815622726,0.56521421,106110.0,106100.0,0.13312]
[1762815622927,0.58043421,106110.0,106100.0,0.13312]
[1762815623075,0.56521421,106110.0,106100.0,0.13312]
[1762815623277,0.2012902,106110.0,106100.0,0.13312]
[1762815623480,0.56521421,106110.0,106100.0,0.13312]
[1762815625346,0.60428421,106110.0,106100.0,0.13312]
[1762815625548,0.60428421,106110.0,106100.0,0.02]
[1762815626952,0.60428421,106110.0,106100.0,0.021]
[1762815627357,0.18855472,106070.0,106060.0,0.11312]
[1762815627564,0.18855472,106070.0,106060.0,0.11412]
[1762815628597,0.18855472,106070.0,106060.0,0.11416766]
[1762815628756,0.19155472,106070.0,106060.0,0.11416766]
[1762815629333,0.19355472,106070.0,106060.0,0.11416766]
[1762815630247,0.55747873,106070.0,106060.0,0.11416766]
[1762815630701,0.56980873,106070.0,106060.0,0.11416766]
[1762815631553,0.56480873,106070.0,106060.0,0.11416766]
[1762815631726,0.56880873,106070.0,106060.0,0.11416766]
[1762815631954,0.58702873,106070.0,106060.0,0.11416766]
[1762815632357,0.61087873,106070.0,106060.0,0.11416766]
[1762815632953,0.60555047,106070.0,106060.0,0.11416766]
[1762815634532,0.59855047,106070.0,106060.0,0.00104766]
[1762815634726,0.59855047,106070.0,106060.0,0.00904766]
[1762815634935,0.59855047,106070.0,106060.0,0.01504766]
[1762815635143,0.18864124,106030.0,106020.0,0.009]
[1762815635401,0.55256525,106030.0,106020.0,0.00904768]
[1762815635910,0.56489525,106030.0,106020.0,0.00904768]
[1762815636210,0.55256525,106030.0,106020.0,0.00904768]
[1762815636403,0.55556525,106030.0,106020.0,0.00904768]
[1762815637596,0.56778525,106030.0,106020.0,0.00904768]
[1762815637803,0.57278525,106030.0,106020.0,0.00904768]
[1762815638004,0.57578525,106030.0,106020.0,0.00904768]
[1762815638210,0.57278525,106030.0,106020.0,0.00904768]
[1762815638412,0.59163525,106030.0,106020.0,0.00904768]
[1762815638661,0.59163525,106030.0,106020.0,0.01004768]
[1762815638862,0.59163525,106030.0,106020.0,0.01104768]
[1762815640709,0.59163525,106030.0,106020.0,0.00904768]
[1762815641072,0.59163525,106030.0,106020.0,0.02204768]
[1762815642537,0.22771124,106030.0,106020.0,0.02204768]
[1762815642707,0.56778525,106030.0,106020.0,0.02204768]
[1762815643532,0.55256525,106030.0,106020.0,0.02204768]
[1762815645521,0.18864124,106030.0,106020.0,0.02204768]
[1762815645749,0.55256525,106030.0,106020.0,0.02204768]
[1762815648414,0.59163525,106030.0,106020.0,0.02204768]
[1762815650907,0.59163525,106030.0,106020.0,0.01604768]
[1762815651127,0.59163525,106030.0,106020.0,0.00904768]
[1762815651356,0.59163525,106030.0,106020.0,0.01304768]
[1762815651541,0.59163525,106030.0,106020.0,0.01804768]
[1762815660126,0.60362525,106030.0,106020.0,0.01804768]
[1762815661540,0.18864124,106030.0,106020.0,0.01804768]
[1762815662185,0.18862586,106030.0,106020.0,0.00904768]
[1762815662395,0.56199646,106040.0,106020.0,0.02804769]
[1762815662597,0.19803847,106040.0,106030.0,0.01900001]
[1762815664060,0.18862843,106050.0,106020.0,4.768e-05]
[1762815664285,0.18862843,106050.0,106040.0,0.01900001]
[1762815664502,0.19805794,106050.0,106040.0,0.01900001]
[1762815664690,0.19801979,106050.0,106040.0,0.01900001]
[1762815665143,0.1980435,106060.0,106030.0,0.13306258]
[1762815665340,0.1980435,106060.0,106050.0,0.01900001]
[1762815666825,0.1980435,106060.0,106050.0,0.02300001]
[1762815667189,0.1980435,106060.0,106050.0,0.02700001]
[1762815670111,0.19265419,106070.0,106050.0,0.02700001]
[1762815670371,0.19265419,106070.0,106060.0,0.01900001]
[1762815670584,0.18861253,106080.0,106060.0,0.01900001]
[1762815670825,0.18861253,106080.0,106070.0,0.01900001]
[1762815671741,0.18861253,106080.0,106070.0,0.01904769]
[1762815672412,0.18961253,106080.0,106070.0,0.01904769]
[1762815673321,0.19061253,106080.0,106070.0,0.01904769]
[1762815679045,0.1980081,106100.0,106070.0,0.55706527]
[1762815679290,0.1980081,106100.0,106090.0,0.01900001]
[1762815681369,0.1990081,106100.0,106090.0,0.01900001]